Cogmind - Beta 15 @@@ ROGUE MODE // 2025.09.27 @ 12:29:14 Player: beans Result: Core destroyed Performance ------------- Evolutions (1) 500 Regions Visited (3) 600 Robots Destroyed (72) 360 Value Destroyed (1428) 1428 Prototype IDs (4) 80 Alien Tech Used (0) 0 Bonus (352) 352 TOTAL SCORE: 3320 Bonus ------- High Alert Combat Kills 154 Follower Combat Kills 198 Cogmind --------- Core Integrity 0/400 Matter 300/300 Energy 100/100 System Corruption 39% Temperature Cool (0) Movement Core (50) Location -9/Storage Parts ------- > --- POWER (1) -------- (None) > --- PROPULSION (2) --- VTOL Module > --- UTILITY (4) ------ Improved Targeting Computer > --- WEAPON (2) ------- (None) > --- INVENTORY (5) ---- Improved Ion Engine Cooled Ion Engine VTOL Module VTOL Module Grenade Launcher Peak State ------------ > --- POWER ------------ Ion Engine > --- PROPULSION ------- VTOL Module VTOL Module > --- UTILITY ---------- Improved Targeting Computer Reaction Control System Hacking Suite Drone Bay > --- WEAPON ----------- Heavy Assault Rifle Heavy Assault Rifle > --- INVENTORY -------- Improved Ion Engine Cooled Ion Engine VTOL Module VTOL Module Grenade Launcher [Rating: 23] Favorites ----------- Power Ion Engine Engine Ion Engine Propulsion VTOL Module Treads Light Treads Flight Unit VTOL Module Utility Improved Targeting Computer Device Reaction Control System Processor Improved Targeting Computer Hackware Hacking Suite Weapon Heavy Assault Rifle Energy Gun Improved Medium Laser Ballistic Gun Heavy Assault Rifle Ballistic Cannon Light Cannon Launcher Grenade Launcher Build | -11 -10 -9 -9 ------- Run | Yrd Mat Mat Sto Slots Evolved 2 | . . 2 . Power . | . . . . Propulsion . | . . . . Utility 2 | . . 2 . Weapon . | . . . . Parts Attached 33 | 4 5 22 2 Power 2 | . . 2 . Engine 2 | . . 2 . Core . | . . . . Reactor . | . . . . Propulsion 11 | 2 2 7 . Treads 2 | 2 . . . Leg . | . . . . Wheel . | . . . . Hover . | . . . . Flight 9 | . 2 7 . Utility 9 | . 2 5 2 Device 4 | . . 3 1 Storage . | . . . . Processor 4 | . 2 2 . Hackware 1 | . . . 1 Protection . | . . . . Artifact . | . . . . Weapon 11 | 2 1 8 . Energy Gun 1 | . . 1 . Energy Cannon . | . . . . Ballistic Gun 5 | 2 . 3 . Ballistic Cannon 3 | . 1 2 . Launcher 2 | . . 2 . Special Weapon . | . . . . Impact Weapon . | . . . . Slashing Weapon . | . . . . Piercing Weapon . | . . . . Special Melee Weapon . | . . . . Unidentified Prototypes 2 | . . 2 . Parts Lost 15 | . . 8 7 Power 1 | . . . 1 Propulsion 3 | . . 2 1 Utility 7 | . . 4 3 Weapon 4 | . . 2 2 Highest Loss Streak 7 | . . 4 7 To Critical Strikes . | . . . . Average Backups 3 | . 1 4 4 Power 1 | . . 1 1 Propulsion 1 | . . 1 2 Utility . | . . . . Weapon 1 | . 1 1 1 Tool/Special . | . . . . Unused Backups 4 | . . 2 2 Power 1 | . . . 1 Propulsion 3 | . . 2 1 Utility . | . . . . Weapon . | . . . . Tool/Special . | . . . . Average Slot Usage (%) 74 | . 63 70 85 Engine 3 | . . . 9 Treads 3 | . 14 . . Flight 19 | . 12 21 21 Device 8 | . . 4 18 Processor 16 | . 7 24 11 Hackware 1 | . . . 3 Ballistic Gun 16 | . 22 11 20 Ballistic Cannon 4 | . 5 8 . Peak Build Rating 23 | 4 8 18 23 Average Rating 12 | 3 5 10 19 On Entrance 6 | . 4 8 13 Naked Turns . | . . . . Heaviest Build 18 | 2 4 9 18 Greatest Support 40 | 40 40 8 8 Greatest Overweight (x) 2 | . . 1 2 Average Overweight (x) . | . . . 1 Largest Inventory Capacity 5 | 5 5 5 5 Average Capacity 5 | 5 5 5 5 Most Carried 5 | 2 4 5 5 Average Carried 3 | . 1 4 4 Final Capacity 5 | 5 5 5 5 Final Carried 5 | . 3 5 5 Class Distribution -------------------- 47% | Mutant 28% | Commander-Mutant 23% | Sprinter Dominant Class ---------------- Mutant | -10/Materials Sprinter | -9/Materials Commander-Mutant | -9/Storage Resources | -11 -10 -9 -9 ----------- Run | Yrd Mat Mat Sto Matter Collected 1482 | 156 283 853 190 Remotely . | . . . . Salvage Created 2446 | 14 459 1338 635 Parts 152 | 3 24 89 36 Haulers Intercepted 7 | . 1 6 . Recyclers Shooed 4 | . 1 2 1 Parts Field Recycled . | . . . . Retrieved Matter . | . . . . Parts Self-Destructed . | . . . . Prevented . | . . . . Kills | -11 -10 -9 -9 ------- Run | Yrd Mat Mat Sto Combat Hostiles Destroyed 42 | . 7 30 5 Guns 25 | . 6 14 5 Cannons 13 | . 1 12 . AOE 4 | . . 4 . Classes Destroyed 9 | 1 6 1 1 Tunneler 1 | 1 . . . Hauler 7 | . 1 6 . Recycler 9 | . 3 3 3 Operator 3 | . 1 1 1 Watcher 7 | . 2 5 . Swarmer 16 | . 6 10 . Grunt 20 | . 1 14 5 Brawler 1 | . . . 1 Sentry 8 | . . 6 2 Best Kill Streak 15 | 1 6 15 2 Combat Bots Only 6 | . 6 6 1 Max Kills in Single Turn 3 | 1 1 3 1 Gunslinging . | . . . . Exploded 3 | . . 3 . Melee . | . . . . Uniques/NPCs Destroyed . | . . . . Combat | -11 -10 -9 -9 -------- Run | Yrd Mat Mat Sto Hostile Shots Fired 192 | . 32 115 45 Missed 68 | . 6 50 12 Hits 124 | . 26 65 33 Melee 3 | . . . 3 Projectile 121 | . 26 65 30 Critical Strikes 2 | . . 2 . Damage Taken 1690 | . 208 926 556 Core 435 | . 22 230 183 Absorbed by Shields . | . . . . Regen/Repaired (Parts) 96 | . . 96 . Core Remaining (%) 95 | 100 91 . . Volleys Fired 156 | 2 39 87 28 Largest 2 | 2 2 2 2 Hottest 56 | 40 50 56 46 Shots Fired 311 | 4 78 172 57 Gun 209 | 4 56 92 57 Cannon 96 | . 22 74 . Launcher 6 | . . 6 . Special . | . . . . Kinetic 305 | 4 78 166 57 Thermal . | . . . . Explosive 6 | . . 6 . Electromagnetic . | . . . . Robot Hit Streak 18 | 1 18 13 7 Robot Miss Streak 3 | 1 3 3 2 Penetration Max . | . . . . Secondary Targets 2 | . 1 . 1 Max Gunslinging Chain 1 | . 1 . 1 Shots Hit Robots 196 | 2 42 114 38 Core Hits 98 | 2 20 57 19 Critical Kills 2 | . . . 2 Critical Parts Destroyed . | . . . . Critical Strikes 5 | . 1 2 2 Destroy 2 | . . . 2 Blast 3 | . 1 2 . Melee Attacks . | . . . . Impact . | . . . . Slashing . | . . . . Piercing . | . . . . Sneak Attacks . | . . . . Combat Hostiles . | . . . . Follow-up Attacks . | . . . . Damage Inflicted 3621 | 13 502 2492 614 Guns 1553 | 13 215 761 564 Cannons 1388 | . 287 1101 . Explosions 527 | . . 527 . Melee . | . . . . Ramming 153 | . . 103 50 Kinetic 2941 | 13 502 1862 564 Thermal . | . . . . Explosive 527 | . . 527 . Electromagnetic . | . . . . Impact . | . . . . Slashing . | . . . . Piercing . | . . . . Highest Corruption 37 | . . 16 37 Average Corruption 15 | . . 10 17 Corruption Purged . | . . . . Corruption Blocked . | . . . . Effects 36 | . . 9 27 Message Errors 13 | . . 5 8 Matter Fused 1 | . . . 1 Heat Flow Errors 4 | . . 2 2 Energy Discharges 7 | . . . 7 Data Loss (minor) 2 | . . 1 1 Data Loss (major) 3 | . . 1 2 Misfires 2 | . . . 2 Alerts 1 | . . . 1 Misdirections 2 | . . . 2 Weapon Failures 1 | . . . 1 Overload Shots . | . . . . Overflow Damage 77 | . 10 67 . Projectiles 10 | . 10 . . Explosions 67 | . . 67 . Melee . | . . . . Knockbacks 7 | . 3 4 . Impact . | . . . . Kinetic 7 | . 3 4 . Secondary . | . . . . Self-Inflicted Damage 179 | . . 136 43 Shots 3 | . . 3 . Rammed 6 | . . . 6 Targets Rammed 6 | . . . 6 Kicked . | . . . . Crushed . | . . . . Highest Temperature 272 | . 8 272 126 Average Temperature 50 | . 4 100 50 Received Heat Transfer 543 | . . 366 177 Siege Activations . | . . . . Martial Activations . | . . . . Shielding Activations . | . . . . Robots Disrupted . | . . . . Combat Hostiles . | . . . . Robots Corrupted . | . . . . Combat Hostiles . | . . . . Parts Fried . | . . . . Impact Corruptions . | . . . . Robots Melted . | . . . . Combat Hostiles . | . . . . Parts Melted 1 | . . . 1 Heat Transferred . | . . . . Parts Sabotaged . | . . . . Parts Stolen . | . . . . Parts Stripped . | . . . . Power Chain Reactions . | . . . . Alert | -11 -10 -9 -9 ------- Run | Yrd Mat Mat Sto Maximum Alert Level 3 | . . 3 2 Low Security (%) 30 | 100 100 19 . Level 1 32 | . . 29 57 Level 2 36 | . . 49 42 Level 3 . | . . 1 . Level 4 . | . . . . Level 5 . | . . . . High Security . | . . . . Max Security . | . . . . Peak Influence 703 | 5 130 703 496 Initial 277 | . . 45 277 Average 318 | . 65 417 361 Influence Increases 1775 | 5 215 1035 520 Destroy 0b10 Robot/C 1040 | . 140 600 300 Destroy 0b10 Robot/NC 140 | 5 35 75 25 Destroy Leader 240 | . 36 142 62 Allied During Kill 131 | . . . 131 Successful Hack 28 | . 4 22 2 Disable Machine 30 | . . 30 . Destroy Structure 46 | . . 46 . Lose Combat Pursuer 120 | . . 120 . Influence Decreases 1446 | 5 107 485 849 Entered New Map 444 | . . 63 381 Time Decay 732 | 5 107 342 278 Lost Part 150 | . . 80 70 Lost Ally 120 | . . . 120 Squads Dispatched 7 | . 1 3 3 Investigation 2 | . . 1 1 Extermination . | . . . . Reinforcement 4 | . 1 2 1 Assault 1 | . . . 1 Garrison . | . . . . Intercept . | . . . . Searches Triggered . | . . . . Construction Impeded . | . . . . Haulers Reinforced . | . . . . Active Scanning Responses . | . . . . Cargo Convoy Interrupts . | . . . . Stealth | -11 -10 -9 -9 --------- Run | Yrd Mat Mat Sto Distress Signals 3 | . . 2 1 Communications Jammed . | . . . . Distress Signals . | . . . . Times Spotted 79 | . 12 46 21 Peak Tracking Total 7 | . 3 7 4 Tactical Retreats 3 | . . 3 . Traps | -11 -10 -9 -9 ------- Run | Yrd Mat Mat Sto Traps Triggered 6 | . 1 3 2 Indirectly . | . . . . Trap Hack Attempts . | . . . . Triggered . | . . . . Disarmed . | . . . . Reprogrammed . | . . . . Reused . | . . . . Traps Extracted . | . . . . Installed . | . . . . Triggered . | . . . . Machines | -11 -10 -9 -9 ---------- Run | Yrd Mat Mat Sto Machines Disabled 2 | . . 2 . Max in Single Turn 1 | . . 1 . Machines Repaired . | . . . . Machines Dismantled . | . . . . Machines Sabotaged . | . . . . Overloaded Fab Kills . | . . . . Hacking | -11 -10 -9 -9 --------- Run | Yrd Mat Mat Sto Machines Accessed 8 | . 1 4 3 Terminals 7 | . 1 3 3 Fabricators . | . . . . Repair Stations 1 | . . 1 . Recycling Units . | . . . . Scanalyzers . | . . . . Garrison Access . | . . . . Total Hacks 16 | . 1 10 5 Successful 8 | . 1 4 3 Failed 8 | . . 6 2 Catastrophic 1 | . . 1 . Database Lockouts . | . . . . Manual 3 | . . 3 . Terminals 13 | . 1 7 5 Fabricators . | . . . . Repair Stations 3 | . . 3 . Recycling Units . | . . . . Scanalyzers . | . . . . Garrison Access . | . . . . Terminal Hacks 6 | . 1 2 3 Prototype ID Bank 1 | . . 1 . Open Door 2 | . . . 2 Emergency Access Points 1 | . . . 1 Dispatch Records 1 | . 1 . . Hauler Manifests 1 | . . 1 . Fabricator Hacks . | . . . . Repair Station Hacks 2 | . . 2 . Scan Component 1 | . . 1 . Repair 1 | . . 1 . Recycling Unit Hacks . | . . . . Scanalyzer . | . . . . Garrison Access Hacks . | . . . . Unauthorized Hacks . | . . . . Terminals . | . . . . Fabricators . | . . . . Repair Stations . | . . . . Recycling Units . | . . . . Scanalyzers . | . . . . Garrison Access . | . . . . Data Cores Recovered 1 | . . 1 . Used . | . . . . Hacking Detections 3 | . . 3 . Full Trace Events 1 | . . 1 . Feedback Events . | . . . . Feedback Blocked . | . . . . Robot Schematics Acquired . | . . . . Robots Built . | . . . . Authchips . | . . . . Time . | . . . . Total Robot Build Rating . | . . . . Part Schematics Acquired . | . . . . Parts Built . | . . . . Authchips . | . . . . Time . | . . . . Total Part Build Rating . | . . . . Parts Repaired 1 | . . 1 . Time 13 | . . 13 . Parts Recycled . | . . . . Recycled Matter . | . . . . Retrieved Matter . | . . . . Retrieved Components . | . . . . Parts Scanalyzed . | . . . . Part Schematics Acquired . | . . . . Parts Damaged . | . . . . Bothacking | -11 -10 -9 -9 ------------ Run | Yrd Mat Mat Sto Used RIF Installer . | . . . . Robots Hacked . | . . . . Non-combat . | . . . . Combat . | . . . . Robot Hacks Applied . | . . . . Relay Couplers Released . | . . . . Fabnet Peak Effective % . | . . . . Robots Rewired . | . . . . Allies Hacked . | . . . . Hacks Repelled . | . . . . Allies | -11 -10 -9 -9 -------- Run | Yrd Mat Mat Sto Total Allies 10 | . . . 10 Largest Group 10 | . . . 10 Highest-Rated Group 88 | . . . 88 Highest-Rated Ally 16 | . . . 16 Total Orders . | . . . . Ally Attacks 68 | . . . 68 Total Damage 563 | . . . 563 Kills 12 | . . . 12 Allies Corrupted . | . . . . Allies Melted . | . . . . Intel | -11 -10 -9 -9 ------- Run | Yrd Mat Mat Sto Active Infowar (turns) 298 | . . 298 . Optics 2 | . . 2 . T.N.C. 296 | . . 296 . Robot Analysis Total . | . . . . Derelict Logs Recovered . | . . . . Drone Launches . | . . . . Drone Recoveries . | . . . . Exploration | -11 -10 -9 -9 ------------- Run | Yrd Mat Mat Sto Turns Passed 1775 | 45 349 772 609 Spaces Moved 1773 | 27 331 1155 260 Core 10 | 9 1 . . Treads 101 | 18 83 . . Legs . | . . . . Wheels . | . . . . Hover . | . . . . Flight 1662 | . 247 1155 260 Fastest Speed 32 | 50 37 32 112 Average Speed 60 | 123 67 36 152 Slowest Speed 192 | 160 160 115 192 Overloaded Moves . | . . . . Propulsion Burnouts . | . . . . Robots Hopped 5 | . . 5 . Potential Cave-ins . | . . . . Cave-ins Triggered . | . . . . Exploration Rate (%) 45 | 4 55 74 49 Regions Visited 3 Branch Regions 1 Pre-discovered Areas . | . . . . Known Exits Taken . | . . . . Unknown Exits Taken 3 | 1 1 1 . Scrap Searched . | . . . . Spaces Dug . | . . . . Terrain Destroyed 41 | . . 41 . Melee . | . . . . Projectile . | . . . . AOE 41 | . . 41 . Terrain Rammed 13 | . . 4 9 Walls Destroyed 4 | . . 4 . Machines Disabled . | . . . . Actions | -11 -10 -9 -9 --------- Run | Yrd Mat Mat Sto Total 2163 | 36 388 1331 408 Wait 134 | . 3 29 102 Move 1760 | 26 330 1144 260 Hop 5 | . . 5 . Pick Up 29 | 4 8 16 1 Fast Attach 11 | . . 9 2 Attach 22 | 4 5 12 1 Detach 3 | . . 3 . Swap 8 | . 1 7 . Drop 17 | . 2 15 . Fire 156 | 2 39 87 28 Melee . | . . . . Ram 18 | . . 4 14 Kick . | . . . . Crush . | . . . . Escape Stasis . | . . . . Rewire . | . . . . Trap . | . . . . Miscellaneous . | . . . . Route ------- -11/Scrapyard -10/Materials (discovered 3 exits: *Mat x2 / [*Min]) -9/Materials (discovered 4 exits: [*Mat x3] / *Sto) -9/Storage (discovered 1 exit: [*Mat]) History --------- Turn | Location | Event 9 | -11/Scrapyard | Discovered new exit (range 15) 46 | -11/Scrapyard | Entered Materials 232 | -10/Materials | Discovered new exit (range 15) 292 | -10/Materials | Discovered new exit (range 9) 323 | -10/Materials | Build established: Mutant 346 | -10/Materials | Discovered new exit (range 7) 395 | -10/Materials | Entered another Materials area 395 | -9/Materials | Evolved 2 slots: Utility x2 623 | -9/Materials | Discovered new exit (range 9) 678 | -9/Materials | Repaired Lgt. Cannon 728 | -9/Materials | Discovered new exit (range 15) 729 | -9/Materials | Discovered new exit (range 13) 806 | -9/Materials | Lost 4 parts (1n1u2w) 972 | -9/Materials | Build established: Sprinter 991 | -9/Materials | Discovered new exit (range 8) 1024 | -9/Materials | System corruption reached 10% 1067 | -9/Materials | Core integrity fell below 50% 1167 | -9/Materials | Entered Storage 1199 | -9/Storage | Assisted by bots powering up and referring to "LRC-V3" 1498 | -9/Storage | Build established: Commander-Mutant 1506 | -9/Storage | Lost 5 allies 1567 | -9/Storage | First assault squad dispatched 1572 | -9/Storage | Discovered new exit (range 8) 1741 | -9/Storage | Lost 4 allies 1767 | -9/Storage | System corruption reached 30% 1769 | -9/Storage | Core integrity fell below 20% 1776 | -9/Storage | Core destroyed Last Messages --------------- Destabilizing: Core damaged (-16). Hvy. Assault Rifle destroyed. Slammed into Storage Shell. Destabilizing: System corrupted (+2). Slammed into Storage Shell. VTOL Module broken. Destabilizing: Short circuit. Slammed into Storage Shell. Drone Bay broken. Destabilizing: Short circuit. Destabilizing: Core damaged (-20). Slammed into Storage Shell. Destabilizing: System corrupted (+2). Slammed into Storage Shell. Broken Drone Bay destroyed. Slammed into Storage Shell. Destabilizing: System corrupted (+1). Slammed into Storage Shell. Destabilizing: System corrupted (+2). Destabilizing: Core damaged (-16). Map ----- +----------------------------------------------------+ | ?#"" #?????#[!*# """""%#??????????????????????? | | ?### #?????#% [# "" =!#??????????????????????? | | ???# #?????# # "" = *#??????????????????????? | | ???# #?????# =# !%[#??????????????????????? | | ???# #?????# [%#####+##/#T###??????????????????? | | ???# #?????# !* =* ????????????? | | ???# #?????+ !%*/%[ ????????????? | | ???# #?????# * =%!%=%! ????????????? | | ???# #?????# =%########+##########?????????????? | | ???# #?????#% #???????????????????????????????? | | ???# ####??#% #???????????????????????????????? | | ???# # # #???????????????????????????????? | | ???# # | # #???????????????????????????????? | | ???# # # #???????????????????????????????? | | ???# # # #???????????????????????????????? | | ???# #= # #####???????????????????????????? | | ???# # [ + +???????????????????????????? | | ???# # # #####???????????????????????????? | | ???# # # ###########?????????????????????? | | ???# # # # #?????????????????????? | | ???# # # # """" #?????????????????????? | | ???# # # # ""??" #?????????????????????? | | ???# # ?# # ""???"g#?????????????????????? | | ???# ##/#??# / "???"" #?????????????????????? | | ???# */!*#??# # "??"" #?????????????????????? | | ???# !=[!#??# =# """" @ #?????????????????????? | | ???# [%=%####[%%+ g #?????????????????????? | | ???# =*[=*%[%* ###########?????????????????????? | | ???##+#########+#####????????????????????????????? | | ???? ????# #????????????????????????????? | | ???? ????# """" #????????????????????????????? | | ???#" "#???# "???" #?????##?????????????????????? | | ???? ????# "????" ###### ####??????????????????? | | ???? ????# ""???? ## ![= #??????????????????? | | ???? [????#=!""????## [%""" #??????????????????? | | ???? [ ????#*=!"""" ## = """ ###????????????????? | | ????###????#%[=== ## """ """#???????????????? | | ???????????#=%=!! ## G"#??????#######??? | | ???????????#/######### """ """#??????# #??? | | ???????????#%#???????# """ ###???????# #??? | | ???????????#!#???????# """ #?????????# T#??? | | ???????????# #???????# #????????### #???? | | ???????????# #############/############# ##### | | ?????????### % | | ????######T# | | ????#!!!!# / | | ????# ############+#########+###### # ##"T"# | | ????#!!! # #??# # ######"""# | | ????########??# """ """ # #????##### | | ??????????????# """ """ # #????????? | +----------------------------------------------------+ Best States ------------- Heat Dissipation 38 Energy Generation 10 Energy Capacity 250 Matter Stores 300 Matter Capacity 300 Sight Range 18 Terrain Scan Density 10 Evasion (%) 71 Targeting Accuracy 12 Recoil Reduction 2 Offensive Hacking 10 Item Schematics ----------------- None Robot Schematics ------------------ None Fabricated ------------ Nothing Repaired ---------- Lgt. Cannon | 20% | -9/Materials Alien Tech Used ----------------- None Achievements -------------- None Challenges ------------ None Game ------ Seed FissionBeamOptics Manual? 0 Play Time 00:31:00 Cumulative 161.7 hours Start 2025.09.27 @ 08:29:49 End 2025.09.27 @ 12:29:14 Sessions 2 Manual Loads 0 Difficulty Rogue Special Mode None Game No. 521 Rogue 520 Adventurer 1 Explorer 0 Win Type - Total 0 Types 0/0/0/0/0/0/0/0/0/0 Lore% 57 Gallery% 54 Achievement% 43 Wizard Run 0 Options --------- Layout 1 ASCII 0 Keyboard 0 Movement Mouse Keybinds 0 Fullscreen 2 Font 24/Smallcaps Map View 50x35 Zoom Use 0% Tactical HUD 0 Map Filters NONE Filters NONE Steam 1 RUN: 1376484a-3b0d-420c-baf3-882f3000b9b0